fUSD/lending_fUSD_20250716
["ID","MTS","AMOUNT","RATE_DAILY","PERIOD"]
[372498735,1752663112708,-464.21,0.00022465,2]
[372498736,1752663112718,-1745.67,0.00022465,2]
[372498737,1752663112727,-2017.87,0.00022465,2]
[372498738,1752663112737,-6507.01,0.00022465,2]
[372498739,1752663112747,-2383.17,0.00022465,2]
[372498740,1752663112758,-460.0,0.00022465,2]
[372498741,1752663112768,-7346.25,0.00022465,2]
[372498742,1752663112779,-16919.72,0.00022465,2]
[372498743,1752663112789,-460.0,0.00022465,2]
[372498744,1752663112798,-460.0,0.00022465,2]
[372498745,1752663112808,-1542.47,0.00022465,2]
[372498746,1752663112818,-3978.63,0.00022465,2]
[372498747,1752663112827,-460.0,0.00022465,2]
[372498748,1752663112837,-480.26,0.00022465,2]
[372498749,1752663112847,-925.97,0.00022465,2]
[372498750,1752663112857,-10810.3,0.00022465,2]
[372498751,1752663112867,-612.19,0.00022465,2]
[372498752,1752663112877,-1020.48,0.00022465,2]
[372498753,1752663112886,-1531.25,0.00022465,2]
[372498754,1752663112897,-4266.26,0.00022465,2]
[372498755,1752663112907,-2510.73,0.00022465,2]
[372498756,1752663112917,-460.0,0.00022465,2]
[372498757,1752663112926,-1572.04,0.00022465,2]
[372498758,1752663112936,-460.0,0.00022465,2]
[372498759,1752663112946,-2857.59,0.00022465,2]
[372498760,1752663112955,-1995.47,0.00022465,2]
[372498761,1752663112965,-383.0,0.00022466,7]
[372498762,1752663112974,-849.0,0.00022466,7]
[372498763,1752663112984,-150.0,0.00022473,2]
[372498764,1752663112993,-281.87,0.00022477,2]
[372498765,1752663113003,-5041.93883,0.000225,30]
[372498766,1752663113013,-449.46842246,0.00022502,2]
[372498767,1752663113022,-159.06782164,0.00022502,2]
[372498768,1752663113032,-1000.0,0.00022521,2]
[372498769,1752663113041,-374.01303531,0.00022521,2]
[372498770,1752663113051,-1000.0,0.00022521,2]
[372498771,1752663113060,-281.83237038,0.00022521,2]
[372498772,1752663113071,-834.44808367,0.00022521,2]
[372498773,1752663113081,-1002.54647072,0.00022521,2]
[372498774,1752663113091,-1000.0,0.00022521,2]
[372498775,1752663113102,-1002.86195144,0.00022521,2]
[372498776,1752663113111,-1000.0,0.00022521,2]
[372498777,1752663113121,-377.17754042,0.00022521,2]
[372498778,1752663113130,-1000.0,0.00022521,2]
[372498779,1752663113142,-1000.0,0.00022521,2]
[372498780,1752663113151,-151.0,0.00022536,2]
[372498781,1752663113161,-308.0,0.00022551,2]
[372498782,1752663113171,-400.0,0.0002257,2]
[372498783,1752663113180,-400.0,0.0002257,2]
[372498784,1752663113194,-2648.00514245,0.00022582,2]
[372498785,1752663113203,-208.0,0.000226,2]
[372498786,1752663113213,-210.72748344,0.000226,30]
[372498787,1752663113222,-216.0,0.000226,2]
[372498788,1752663113231,-200.0,0.000226,2]
[372498789,1752663113242,-204.0,0.000226,2]
[372498790,1752663113251,-211.0,0.000226,2]
[372498791,1752663113261,-212.0,0.000226,2]
[372498792,1752663113271,-214.0,0.000226,2]
[372498793,1752663113282,-202.0,0.000226,2]
[372498794,1752663113294,-220.0,0.000226,2]
[372498795,1752663113304,-211.0,0.000226,2]
[372498796,1752663113314,-156477.17013852,0.00022602,2]
[372498797,1752663113323,-150.0,0.00022602,2]
[372498798,1752663113333,-500.0,0.00022602,2]
[372498799,1752663113343,-546.0,0.00022602,2]
[372498800,1752663113352,-500.0,0.00022602,2]
[372498801,1752663113362,-500.0,0.00022602,2]
[372498802,1752663113373,-455.0,0.00022602,2]
[372498803,1752663113383,-500.0,0.00022602,2]
[372498804,1752663113394,-500.0,0.00022602,2]
[372498805,1752663113405,-474.0,0.00022602,2]
[372498806,1752663113415,-500.0,0.00022602,2]
[372498807,1752663113425,-5123.0,0.00022602,2]
[372498808,1752663113435,-539.0,0.00022602,2]
[372498809,1752663113445,-150.0,0.00022602,2]
[372498810,1752663113457,-500.0,0.00022602,2]
[372498811,1752663113467,-500.0,0.00022602,2]
[372498812,1752663113476,-500.0,0.00022602,2]
[372498813,1752663113486,-543.0,0.00022602,2]
[372498814,1752663113498,-190.90607276,0.00022602,2]
[372498815,1752663113507,-150.0,0.00022602,2]
[372498816,1752663113517,-1846.0,0.00022602,2]
[372498817,1752663113527,-1800.0,0.00022602,2]
[372498818,1752663113536,-562.78204508,0.00022602,2]
[372498819,1752663113545,-1539.29,0.00022602,2]
[372498820,1752663113554,-151.0,0.00022602,7]
[372498821,1752663113564,-151.0,0.00022602,7]
[372498822,1752663113574,-151.0,0.00022602,7]
[372498823,1752663113584,-151.0,0.00022602,7]
[372498824,1752663113594,-460.0,0.00022602,2]
[372498825,1752663113604,-460.0,0.00022602,2]
[372498826,1752663113615,-519.13,0.00022602,2]
[372498827,1752663113626,-460.0,0.00022602,2]
[372498828,1752663113636,-676.6,0.00022602,2]
[372498829,1752663113649,-460.0,0.00022602,2]
[372498830,1752663113659,-460.0,0.00022602,2]
[372498831,1752663113669,-460.0,0.00022602,2]
[372498832,1752663113678,-460.0,0.00022602,2]
[372498833,1752663113688,-460.0,0.00022602,2]
[372498834,1752663113697,-505.45,0.00022602,2]
[372498835,1752663113707,-765.61,0.00022602,2]
[372498836,1752663113718,-607.79664125,0.00022602,2]
[372498837,1752663113727,-522.62,0.00022602,2]
[372498838,1752663113737,-460.0,0.00022602,2]
[372498839,1752663113746,-538.58,0.00022602,2]
[372498840,1752663113756,-460.0,0.00022602,2]
[372498841,1752663113767,-460.0,0.00022602,2]
[372498842,1752663113778,-460.0,0.00022602,2]
[372498843,1752663113905,-460.0,0.00022602,2]
[372498844,1752663113928,-460.0,0.00022602,2]
[372498845,1752663113938,-924.61,0.00022602,2]
[372498846,1752663113948,-609.32,0.00022602,2]
[372498847,1752663113958,-694.23,0.00022602,2]
[372498848,1752663113968,-832.33,0.00022602,2]
[372498849,1752663113978,-460.0,0.00022602,2]
[372498850,1752663113988,-460.0,0.00022602,2]
[372498851,1752663113999,-278.24065453,0.00022602,2]
[372498852,1752663114009,-983.47,0.00022602,2]
[372498853,1752663114019,-460.0,0.00022602,2]
[372498854,1752663114029,-553.59526652,0.00022602,2]
[372498855,1752663114039,-597.48,0.00022602,2]
[372498856,1752663114048,-460.0,0.00022602,2]
[372498857,1752663114059,-935.9,0.00022602,2]
[372498858,1752663114068,-891.24,0.00022602,2]
[372498859,1752663114079,-644.94,0.00022602,2]
[372498860,1752663114090,-954.44,0.00022602,2]
[372498861,1752663114100,-460.0,0.00022602,2]
[372498862,1752663114109,-731.16,0.00022602,2]
[372498863,1752663114120,-833.42,0.00022602,2]
[372498864,1752663114129,-523.46,0.00022602,2]
[372498865,1752663114138,-460.0,0.00022602,2]
[372498866,1752663114150,-500.0,0.00022602,5]
[372498867,1752663114160,-460.0,0.00022602,2]
[372498868,1752663114170,-460.0,0.00022602,2]
[372498869,1752663114182,-460.0,0.00022602,2]
[372498870,1752663114195,-774.89,0.00022602,2]
[372498871,1752663114205,-518.16,0.00022602,2]
[372498872,1752663114215,-460.0,0.00022602,2]
[372498873,1752663114224,-460.0,0.00022602,2]
[372498874,1752663114235,-488.59,0.00022602,2]
[372498875,1752663114244,-460.0,0.00022602,2]
[372498876,1752663114254,-460.0,0.00022602,2]
[372498877,1752663114265,-460.0,0.00022602,2]
[372498878,1752663114275,-876.74,0.00022602,2]
[372498879,1752663114285,-737.68,0.00022602,2]
[372498880,1752663114296,-1277.44,0.00022602,2]
[372498881,1752663114306,-460.0,0.00022602,2]
[372498882,1752663114315,-460.0,0.00022602,2]
[372498883,1752663114326,-566.92,0.00022602,2]
[372498884,1752663114335,-460.0,0.00022602,2]
[372498885,1752663114345,-819.52,0.00022602,2]
[372498886,1752663114355,-529.96,0.00022602,2]
[372498887,1752663114365,-460.0,0.00022602,2]
[372498888,1752663114376,-460.0,0.00022602,2]
[372498889,1752663114387,-460.0,0.00022602,2]
[372498890,1752663114398,-509.23,0.00022602,2]
[372498891,1752663114407,-460.0,0.00022602,2]
[372498892,1752663114417,-460.0,0.00022602,2]
[372498893,1752663114427,-732.88,0.00022602,2]
[372498894,1752663114440,-992.29,0.00022602,2]
[372498895,1752663114449,-1012.49,0.00022602,2]
[372498896,1752663114459,-518.81,0.00022602,2]
[372498897,1752663114476,-460.0,0.00022602,2]
[372498898,1752663114487,-460.0,0.00022602,2]
[372498899,1752663114498,-1830.19,0.00022602,2]
[372498900,1752663114507,-1118.14,0.00022602,2]
[372498901,1752663114517,-460.0,0.00022602,2]
[372498902,1752663114527,-698.13,0.00022602,2]
[372498903,1752663114537,-536.27,0.00022602,2]
[372498904,1752663114547,-460.0,0.00022602,2]
[372498905,1752663114557,-1149.74,0.00022602,2]
[372498906,1752663114566,-460.0,0.00022602,2]
[372498907,1752663114576,-460.0,0.00022602,2]
[372498908,1752663114586,-1545.31,0.00022602,2]
[372498909,1752663114595,-460.0,0.00022602,2]
[372498910,1752663114606,-460.0,0.00022602,2]
[372498911,1752663114616,-460.0,0.00022602,2]
[372498912,1752663114626,-726.17,0.00022602,2]
[372498913,1752663114635,-460.0,0.00022602,2]
[372498914,1752663114649,-1284.09,0.00022602,2]
[372498915,1752663114665,-460.0,0.00022602,2]
[372498916,1752663114677,-1215.86,0.00022602,2]
[372498917,1752663114687,-501.15,0.00022602,2]
[372498918,1752663114696,-761.3,0.00022602,2]
[372498919,1752663114706,-460.0,0.00022602,2]
[372498920,1752663114716,-460.0,0.00022602,2]
[372498921,1752663114726,-639.95,0.00022602,2]
[372498922,1752663114736,-460.0,0.00022602,2]
[372498923,1752663114745,-645.67,0.00022602,2]
[372498924,1752663114755,-1102.51,0.00022602,2]
[372498925,1752663114765,-482.63,0.00022602,2]
[372498926,1752663114775,-460.0,0.00022602,2]
[372498927,1752663114784,-486.85,0.00022602,2]
[372498928,1752663114794,-555.69,0.00022602,2]
[372498929,1752663114803,-460.0,0.00022602,2]
[372498930,1752663114813,-460.0,0.00022602,2]
[372498931,1752663114823,-460.0,0.00022602,2]
[372498932,1752663114833,-772.4,0.00022602,2]
[372498933,1752663114843,-782.15,0.00022602,2]
[372498934,1752663114853,-1307.09,0.00022602,2]
[372498935,1752663114862,-966.62,0.00022602,2]
[372498936,1752663114872,-752.28,0.00022602,2]
[372498937,1752663114881,-563.43,0.00022602,2]
[372498938,1752663114892,-460.0,0.00022602,2]
[372498939,1752663114902,-1360.67,0.00022602,2]
[372498940,1752663114912,-839.82,0.00022602,2]
[372498941,1752663114923,-473.28,0.00022602,2]
[372498942,1752663114933,-460.0,0.00022602,2]
[372498943,1752663114943,-691.75,0.00022602,2]
[372498944,1752663114953,-460.0,0.00022602,2]
[372498945,1752663114963,-460.0,0.00022602,2]
[372498946,1752663114973,-517.48,0.00022602,2]
[372498947,1752663114983,-517.7,0.00022602,2]
[372498948,1752663114993,-1030.19,0.00022602,2]
[372498949,1752663115003,-1612.9,0.00022602,2]
[372498950,1752663115013,-497.86,0.00022602,2]
[372498951,1752663115025,-1319.17,0.00022602,2]
[372498952,1752663115035,-1348.58,0.00022602,2]
[372498953,1752663115046,-876.39,0.00022602,2]
[372498954,1752663115056,-460.0,0.00022602,2]
[372498955,1752663115067,-460.0,0.00022602,2]
[372498956,1752663115077,-460.0,0.00022602,2]
[372498957,1752663115087,-460.0,0.00022602,2]
[372498958,1752663115097,-460.0,0.00022602,2]
[372498959,1752663115106,-521.22,0.00022602,2]
[372498960,1752663115325,-900.25,0.00022602,2]
[372498961,1752663115335,-460.0,0.00022602,2]
[372498962,1752663115344,-460.0,0.00022602,2]
[372498963,1752663115354,-794.42,0.00022602,2]
[372498964,1752663115363,-460.0,0.00022602,2]
[372498965,1752663115373,-460.0,0.00022602,2]
[372498966,1752663115383,-460.0,0.00022602,2]
[372498967,1752663115392,-460.0,0.00022602,2]
[372498968,1752663115402,-671.7,0.00022602,2]
[372498969,1752663115411,-1426.38,0.00022602,2]
[372498970,1752663115423,-617.3,0.00022602,2]
[372498971,1752663115433,-460.0,0.00022602,2]
[372498972,1752663115444,-460.0,0.00022602,2]
[372498973,1752663115454,-460.0,0.00022602,2]
[372498974,1752663115466,-3492.16,0.00022602,2]
[372498975,1752663115477,-960.48,0.00022602,2]
[372498976,1752663115486,-460.0,0.00022602,2]
[372498977,1752663115497,-697.02,0.00022602,2]
[372498978,1752663115506,-859.04,0.00022602,2]
[372498979,1752663115516,-460.0,0.00022602,2]
[372498980,1752663115525,-460.0,0.00022602,2]
[372498981,1752663115535,-578.96,0.00022602,2]
[372498982,1752663115544,-460.0,0.00022602,2]
[372498983,1752663115554,-737.1,0.00022602,2]
[372498984,1752663115563,-3159.42,0.00022602,2]
[372498985,1752663115574,-460.0,0.00022602,2]
[372498986,1752663115583,-480.69,0.00022602,2]
[372498987,1752663115592,-658.34,0.00022602,2]
[372498988,1752663115602,-1247.6,0.00022602,2]
[372498989,1752663115612,-460.0,0.00022602,2]
[372498990,1752663115621,-460.0,0.00022602,2]
[372498991,1752663115631,-460.0,0.00022602,2]
[372498992,1752663115641,-1704.14,0.00022602,2]
[372498993,1752663115651,-889.84,0.00022602,2]
[372498994,1752663115660,-460.0,0.00022602,2]
[372498995,1752663115670,-460.0,0.00022602,2]
[372498996,1752663115680,-980.18,0.00022602,2]
[372498997,1752663115689,-864.4,0.00022602,2]
[372498998,1752663115699,-460.0,0.00022602,2]
[372498999,1752663115708,-460.0,0.00022602,2]
[372499000,1752663115718,-1337.4,0.00022602,2]
[372499001,1752663115728,-460.0,0.00022602,2]
[372499002,1752663115738,-460.0,0.00022602,2]
[372499003,1752663115747,-538.85,0.00022602,2]
[372499004,1752663115757,-460.0,0.00022602,2]
[372499005,1752663115766,-439.19,0.00022602,2]
[372499006,1752663115776,-770.68,0.00022602,2]
[372499007,1752663115785,-1191.07,0.00022602,2]
[372499008,1752663115795,-460.0,0.00022602,2]
[372499009,1752663115805,-1520.94,0.00022602,2]
[372499010,1752663115815,-416.2154318,0.00022602,2]
[372499011,1752663115826,-544.95998564,0.00022602,2]
[372499012,1752663115835,-460.0,0.00022602,2]
[372499013,1752663115845,-554.47,0.00022602,2]
[372499014,1752663115855,-460.0,0.00022602,2]
[372499015,1752663115865,-575.57,0.00022602,2]
[372499016,1752663115877,-460.0,0.00022602,2]
[372499017,1752663115886,-460.0,0.00022602,2]
[372499018,1752663115896,-614.94,0.00022602,2]
[372499019,1752663115905,-460.0,0.00022602,2]
[372499020,1752663115915,-2763.38,0.00022602,2]
[372499021,1752663115925,-508.9,0.00022602,2]
[372499022,1752663115935,-460.0,0.00022602,2]
[372499023,1752663115945,-508.1,0.00022602,2]
[372499024,1752663115955,-1649.66,0.00022602,2]
[372499025,1752663115965,-460.0,0.00022602,2]
[372499026,1752663115975,-1198.93,0.00022602,2]
[372499027,1752663115985,-460.0,0.00022602,2]
[372499028,1752663115994,-1580.32,0.00022602,2]
[372499029,1752663116005,-1021.74,0.00022602,2]
[372499030,1752663116014,-460.0,0.00022602,2]
[372499031,1752663116024,-460.0,0.00022602,2]
[372499032,1752663116033,-460.0,0.00022602,2]
[372499033,1752663116043,-460.0,0.00022602,2]
[372499034,1752663116053,-2741.41,0.00022602,2]
[372499035,1752663116065,-1900.49,0.00022602,2]
[372499036,1752663116075,-460.0,0.00022602,2]
[372499037,1752663116085,-3441.76,0.00022602,2]
[372499038,1752663116095,-2750.23,0.00022602,2]
[372499039,1752663116105,-460.0,0.00022602,2]
[372499040,1752663116114,-504.67,0.00022602,2]
[372499041,1752663116124,-1705.39,0.00022602,2]
[372499042,1752663116134,-460.0,0.00022602,2]
[372499043,1752663116145,-962.35,0.00022602,2]
[372499044,1752663116154,-460.0,0.00022602,2]
[372499045,1752663116165,-460.0,0.00022602,2]
[372499046,1752663116175,-460.0,0.00022602,2]
[372499047,1752663116187,-478.83,0.00022602,2]
[372499048,1752663116198,-525.54,0.00022602,2]
[372499049,1752663116207,-1147.29,0.00022602,2]
[372499050,1752663116217,-460.0,0.00022602,2]
[372499051,1752663116226,-460.0,0.00022602,2]
[372499052,1752663116237,-737.1,0.00022602,2]
[372499053,1752663116248,-460.0,0.00022602,2]
[372499054,1752663116259,-460.0,0.00022602,2]
[372499055,1752663116271,-1861.51,0.00022602,2]
[372499056,1752663116281,-1161.16,0.00022602,2]
[372499057,1752663116292,-464.05,0.00022602,2]
[372499058,1752663116302,-460.0,0.00022602,2]
[372499059,1752663116312,-1541.82,0.00022602,2]
[372499060,1752663116322,-1367.94,0.00022602,2]
[372499061,1752663116331,-515.0,0.00022602,2]
[372499062,1752663116686,-796.7,0.00022602,2]
[372499063,1752663116696,-509.86,0.00022602,2]
[372499064,1752663116707,-2639.83,0.00022602,2]
[372499065,1752663116717,-1604.58,0.00022602,2]
[372499066,1752663116727,-2045.95,0.00022602,2]
[372499067,1752663116737,-720.83,0.00022602,2]
[372499068,1752663116747,-2767.68,0.00022602,2]
[372499069,1752663116756,-556.0,0.00022602,2]
[372499070,1752663116766,-995.1,0.00022602,2]
[372499071,1752663116775,-460.0,0.00022602,2]
[372499072,1752663116785,-460.0,0.00022602,2]
[372499073,1752663116795,-474.83,0.00022602,2]
[372499074,1752663116804,-465.39,0.00022602,2]
[372499075,1752663116814,-460.0,0.00022602,2]
[372499076,1752663116823,-460.0,0.00022602,2]
[372499077,1752663116833,-579.42,0.00022602,2]
[372499078,1752663116843,-597.28,0.00022602,2]
[372499079,1752663116853,-1174.38,0.00022602,2]
[372499080,1752663116863,-469.93,0.00022602,2]
[372499081,1752663116872,-460.0,0.00022602,2]
[372499082,1752663116882,-1146.77,0.00022602,2]
[372499083,1752663116892,-2023.63,0.00022602,2]
[372499084,1752663116902,-460.0,0.00022602,2]
[372499085,1752663116912,-627.96,0.00022602,2]
[372499086,1752663116922,-2253.55,0.00022602,2]
[372499087,1752663116932,-597.05,0.00022602,2]
[372499088,1752663116942,-950.28,0.00022602,2]
[372499089,1752663116952,-692.22,0.00022602,2]
[372499090,1752663116962,-597.04,0.00022602,2]
[372499091,1752663116972,-460.0,0.00022602,2]
[372499092,1752663116982,-460.0,0.00022602,2]
[372499093,1752663116991,-460.0,0.00022602,2]
[372499094,1752663117001,-934.91,0.00022602,2]
[372499095,1752663117012,-1367.21,0.00022602,2]
[372499096,1752663117022,-1051.45,0.00022602,2]
[372499097,1752663117032,-2518.02,0.00022602,2]
[372499098,1752663117042,-460.0,0.00022602,2]
[372499099,1752663117052,-1954.32,0.00022602,2]
[372499100,1752663117062,-460.0,0.00022602,2]
[372499101,1752663117071,-1320.19,0.00022602,2]
[372499102,1752663117081,-460.0,0.00022602,2]
[372499103,1752663117090,-477.97508574,0.00022602,2]
[372499104,1752663117100,-460.0,0.00022602,2]
[372499105,1752663117110,-3449.55,0.00022602,2]
[372499106,1752663117120,-527.48,0.00022602,2]
[372499107,1752663117130,-460.0,0.00022602,2]
[372499108,1752663117138,-850.19,0.00022602,2]
[372499109,1752663117149,-460.0,0.00022602,2]
[372499110,1752663117159,-460.0,0.00022602,2]
[372499111,1752663117169,-3110.28,0.00022602,2]
[372499112,1752663117179,-802.2,0.00022602,2]
[372499113,1752663117192,-460.0,0.00022602,2]
[372499114,1752663117202,-2098.67,0.00022602,2]
[372499115,1752663117211,-940.26,0.00022602,2]
[372499116,1752663117221,-689.36,0.00022602,2]
[372499117,1752663117230,-2979.04,0.00022602,2]
[372499118,1752663117241,-460.0,0.00022602,2]
[372499119,1752663117251,-752.81,0.00022602,2]
[372499120,1752663117261,-945.82,0.00022602,2]
[372499121,1752663117275,-461.28,0.00022602,2]
[372499122,1752663117286,-1127.17,0.00022602,2]
[372499123,1752663117296,-1080.52,0.00022602,2]
[372499124,1752663117306,-460.0,0.00022602,2]
[372499125,1752663117316,-486.62,0.00022602,2]
[372499126,1752663117326,-460.0,0.00022602,2]
[372499127,1752663117336,-460.0,0.00022602,2]
[372499128,1752663117347,-3049.9,0.00022602,2]
[372499129,1752663117357,-1363.97,0.00022602,2]
[372499130,1752663117367,-1920.84,0.00022602,2]
[372499131,1752663117378,-1266.56,0.00022602,2]
[372499132,1752663117388,-547.91,0.00022602,2]
[372499133,1752663117399,-460.0,0.00022602,2]
[372499134,1752663117409,-460.0,0.00022602,2]
[372499135,1752663117420,-460.0,0.00022602,2]
[372499136,1752663117430,-963.24,0.00022602,2]
[372499137,1752663117440,-1157.14,0.00022602,2]
[372499138,1752663117452,-2280.97,0.00022602,2]
[372499139,1752663117463,-460.0,0.00022602,2]
[372499140,1752663117473,-2306.11,0.00022602,2]
[372499141,1752663117483,-1152.83,0.00022602,2]
[372499142,1752663117493,-1495.62,0.00022602,2]
[372499143,1752663117503,-526.48,0.00022602,2]
[372499144,1752663117513,-594.73034015,0.00022602,2]
[372499145,1752663117523,-658.25,0.00022602,2]
[372499146,1752663117533,-460.0,0.00022602,2]
[372499147,1752663117544,-460.0,0.00022602,2]
[372499148,1752663117554,-2249.33,0.00022602,2]
[372499149,1752663117564,-902.72,0.00022602,2]
[372499150,1752663117574,-498.87,0.00022602,2]
[372499151,1752663117583,-1741.37,0.00022602,2]
[372499152,1752663117594,-460.0,0.00022602,2]
[372499153,1752663117604,-460.0,0.00022602,2]
[372499154,1752663117614,-515.22,0.00022602,2]
[372499155,1752663117624,-493.63625343,0.00022602,2]
[372499156,1752663117634,-460.0,0.00022602,2]
[372499157,1752663117646,-1256.01,0.00022602,2]
[372499158,1752663117656,-748.36,0.00022602,2]
[372499159,1752663117666,-730.45,0.00022602,2]
[372499160,1752663117676,-889.78,0.00022602,2]
[372499161,1752663117686,-1213.76,0.00022602,2]
[372499162,1752663117696,-460.0,0.00022602,2]
[372499163,1752663117706,-976.13,0.00022602,2]
[372499164,1752663117717,-595.0,0.00022602,2]
[372499165,1752663117727,-1393.74,0.00022602,2]
[372499166,1752663117738,-1803.46,0.00022602,2]
[372499167,1752663117748,-460.0,0.00022602,2]
[372499168,1752663117758,-460.0,0.00022602,2]
[372499169,1752663117768,-2622.24,0.00022602,2]
[372499170,1752663117778,-460.0,0.00022602,2]
[372499171,1752663117788,-460.0,0.00022602,2]
[372499172,1752663117798,-476.01,0.00022602,2]
[372499173,1752663117808,-2059.43,0.00022602,2]
[372499174,1752663117818,-2566.84,0.00022602,2]
[372499175,1752663117829,-567.34,0.00022602,2]
[372499176,1752663117839,-2711.83,0.00022602,2]
[372499177,1752663117849,-460.0,0.00022602,2]
[372499178,1752663117859,-629.46,0.00022602,2]
[372499179,1752663117870,-1222.0,0.00022602,2]
[372499180,1752663117880,-460.0,0.00022602,2]
[372499181,1752663117890,-460.0,0.00022602,2]
[372499182,1752663117900,-1237.1,0.00022602,2]
[372499183,1752663117911,-2588.11,0.00022602,2]
[372499184,1752663117921,-460.0,0.00022602,2]
[372499185,1752663117931,-499.91,0.00022602,2]
[372499186,1752663117942,-1423.44,0.00022602,2]
[372499187,1752663117952,-2529.28,0.00022602,2]
[372499188,1752663117962,-460.0,0.00022602,2]
[372499189,1752663117972,-460.0,0.00022602,2]
[372499190,1752663117981,-1539.06,0.00022602,2]
[372499191,1752663117992,-460.0,0.00022602,2]
[372499192,1752663118002,-1099.63,0.00022602,2]
[372499193,1752663118012,-1405.9,0.00022602,2]
[372499194,1752663118022,-460.0,0.00022602,2]
[372499195,1752663118032,-851.53,0.00022602,2]
[372499196,1752663118043,-3553.18,0.00022602,2]
[372499197,1752663118053,-782.81,0.00022602,2]
[372499198,1752663118064,-540.25,0.00022602,2]
[372499199,1752663118075,-1813.38,0.00022602,2]
[372499200,1752663118085,-460.0,0.00022602,2]
[372499201,1752663118095,-3147.54,0.00022602,2]
[372499202,1752663118105,-1440.52,0.00022602,2]
[372499203,1752663118114,-859.58,0.00022602,2]
[372499204,1752663118124,-1141.87,0.00022602,2]
[372499205,1752663118134,-1810.64,0.00022602,2]
[372499206,1752663118145,-414.31941971,0.00022602,2]
[372499207,1752663118155,-3032.38,0.00022602,2]
[372499208,1752663118165,-460.0,0.00022602,2]
[372499209,1752663118175,-460.0,0.00022602,2]
[372499210,1752663118185,-460.0,0.00022602,2]
[372499211,1752663118198,-460.0,0.00022602,2]
[372499212,1752663118208,-460.0,0.00022602,2]
[372499213,1752663118217,-853.73,0.00022602,2]
[372499214,1752663118227,-496.87,0.00022602,2]
[372499215,1752663118238,-525.43,0.00022602,2]
[372499216,1752663118248,-1417.02,0.00022602,2]
[372499217,1752663118258,-460.0,0.00022602,2]
[372499218,1752663118268,-2023.67,0.00022602,2]
[372499219,1752663118279,-2884.5,0.00022602,2]
[372499220,1752663118289,-460.0,0.00022602,2]
[372499221,1752663118299,-460.0,0.00022602,2]
[372499222,1752663118309,-460.0,0.00022602,2]
[372499223,1752663118319,-3089.316035,0.00022602,2]
[372499224,1752663118330,-645.68,0.00022602,2]
[372499225,1752663118340,-460.0,0.00022602,2]
[372499226,1752663118350,-460.0,0.00022602,2]
[372499227,1752663118361,-460.0,0.00022602,2]
[372499228,1752663118371,-2243.27,0.00022602,2]
[372499229,1752663118380,-3447.716716,0.00022602,2]
[372499230,1752663118391,-460.0,0.00022602,2]
[372499231,1752663118401,-1160.26,0.00022602,2]
[372499232,1752663118410,-1094.15,0.00022602,2]
[372499233,1752663118420,-1128.01,0.00022602,2]
[372499234,1752663118429,-3424.477153,0.00022602,2]